bitfinex/quotes_SOLUSD_20250704
["timestamp","ask_amount","ask_price","bid_price","bid_amount"]
[1751650427973,0.2,146.3,146.28,6.83620453]
[1751650428144,0.2,146.3,146.28,13.74738848]
[1751650428658,0.2,146.3,146.28,6.91118395]
[1751650431854,0.2,146.3,146.28,13.74736878]
[1751650432163,7.11118395,146.3,146.25,32.91118395]
[1751650432361,12.21817639,146.3,146.26,6.83685556]
[1751650432567,12.21817639,146.3,146.26,13.74803951]
[1751650434263,5.10699244,146.29,146.26,13.74803951]
[1751650434644,5.10699244,146.29,146.26,6.83685556]
[1751650434936,5.10699244,146.29,146.26,13.74803951]
[1751650438258,7.11118395,146.3,146.26,13.74803951]
[1751650438559,5.11512501,146.29,146.26,13.74803951]
[1751650438860,7.11118395,146.3,146.26,13.74803951]
[1751650439160,5.11512501,146.29,146.26,13.74803951]
[1751650439354,7.11118395,146.3,146.26,13.74803951]
[1751650439552,5.11538294,146.29,146.26,13.74803951]
[1751650439754,7.11118395,146.3,146.26,13.74803951]
[1751650440069,5.11538436,146.29,146.26,13.74803951]
[1751650441366,7.11118395,146.3,146.26,6.83685556]
[1751650441541,6.91118395,146.27,146.2,7.28]
[1751650441746,6.91118395,146.25,146.21,13.75066141]
[1751650441953,6.91118395,146.24,146.2,14.11974165]
[1751650442165,6.91118395,146.23,146.2,6.93974165]
[1751650442759,12.02827901,146.23,146.2,6.93974165]
[1751650442951,6.91118395,146.23,146.2,6.93974165]
[1751650443153,5.11709506,146.24,146.2,6.93974165]
[1751650443352,5.11709506,146.26,146.21,6.91118395]
[1751650443548,12.02827901,146.25,146.21,6.91118395]
[1751650443753,5.11709506,146.24,146.21,6.91118395]
[1751650444473,5.11709506,146.24,146.21,13.7504347]
[1751650444976,12.02827901,146.24,146.2,6.93976102]
[1751650445269,6.91118395,146.23,146.2,6.93976102]
[1751650445495,6.91118395,146.25,146.21,6.91118395]
[1751650445684,5.11709506,146.24,146.22,6.91118395]
[1751650445863,5.11709506,146.25,146.22,6.91118395]
[1751650446057,12.02827901,146.25,146.21,6.91118395]
[1751650446361,6.91118395,146.25,146.21,13.75048904]
[1751650446560,12.02827901,146.25,146.21,13.75048904]
[1751650446781,12.02827901,146.25,146.21,6.83930509]
[1751650446978,12.02827901,146.25,146.21,13.75048904]
[1751650447170,12.02827901,146.25,146.21,6.83930509]
[1751650447371,12.02827901,146.25,146.21,13.75048904]
[1751650447572,6.91118395,146.25,146.21,13.75048904]
[1751650447775,5.11709506,146.26,146.21,13.75048904]
[1751650447776,5.11709506,146.26,146.22,6.91118395]
[1751650447956,6.91118395,146.27,146.23,6.91118395]
[1751650448159,12.02827901,146.27,146.23,6.91118395]
[1751650448360,6.91118395,146.27,146.24,6.83807439]
[1751650448658,6.74449506,146.28,146.24,13.74925834]
[1751650448881,13.65567901,146.28,146.24,13.74925834]
[1751650450279,5.11709506,146.28,146.25,6.91118395]
[1751650450589,5.11709506,146.28,146.25,13.74837618]
[1751650451457,5.11709506,146.29,146.27,6.91118395]
[1751650451662,90.0,146.3,146.28,6.91118395]
[1751650451663,0.2,146.3,146.28,6.91118395]
[1751650451864,0.2,146.3,146.29,6.91118395]
[1751650452702,0.2,146.3,146.29,13.74692118]
[1751650463826,0.2,146.3,146.29,20.65810513]
[1751650464132,0.2,146.31,146.3,18.64964886]
[1751650464290,0.2,146.31,146.3,32.47201676]
[1751650466097,0.2,146.31,146.3,39.30728675]
[1751650466888,0.2,146.31,146.3,25.48491885]
[1751650467120,0.2,146.31,146.3,13.74645394]
[1751650472120,0.2,146.33,146.3,30.83462892]
[1751650472326,0.2,146.33,146.32,6.91118395]
[1751650472814,0.2,146.33,146.3,30.83462892]
[1751650473050,0.2,146.33,146.32,6.91118395]
[1751650474124,0.2,146.33,146.32,13.74551965]
[1751650480731,0.2,146.33,146.32,58.39516851]
[1751650480732,1e-08,146.33,146.32,58.39516851]
[1751650481518,1e-08,146.33,146.32,32.8343357]
[1751650481725,1e-08,146.33,146.32,39.74551965]
[1751650482219,1e-08,146.33,146.32,32.8343357]
[1751650482444,1e-08,146.33,146.32,39.74551965]
[1751650483438,1e-08,146.33,146.32,6.8343357]
[1751650483649,1e-08,146.33,146.32,13.74551965]
[1751650484228,1e-08,146.33,146.32,6.8343357]
[1751650484621,1e-08,146.33,146.3,6.91118395]
[1751650484919,6.91118396,146.33,146.31,6.83459842]
[1751650485538,6.91118396,146.33,146.3,6.83526999]
[1751650486945,6.91118395,146.32,146.29,6.83565217]
[1751650487141,6.91118396,146.33,146.29,6.83565217]
[1751650488064,6.91118396,146.33,146.29,13.74683612]
[1751650489157,1e-08,146.33,146.29,13.74683612]
[1751650490232,6.91118396,146.33,146.29,13.74683612]
[1751650492235,8.51608395,146.31,146.27,13.74785585]
[1751650492858,8.51608395,146.31,146.27,6.8366719]
[1751650493051,6.91118395,146.3,146.27,6.8366719]
[1751650493359,6.70825325,146.31,146.27,13.74785585]
[1751650493533,8.51608395,146.31,146.27,13.74785585]
[1751650494042,8.51608395,146.31,146.27,6.8366719]
[1751650494557,8.51608395,146.31,146.27,13.74785585]
[1751650495056,1.6049,146.31,146.27,13.74785585]
[1751650495238,1.6049,146.31,146.28,6.91118395]
[1751650497538,1.6049,146.31,146.29,6.83573723]
[1751650500569,5.11163806,146.32,146.29,13.74692118]
[1751650502171,6.91118395,146.3,146.26,20.92809456]
[1751650502353,6.91118395,146.3,146.26,13.74809456]
[1751650502751,12.02311888,146.3,146.26,13.74809456]
[1751650502954,6.91118395,146.3,146.26,13.74809456]
[1751650503141,5.11193493,146.3,146.28,6.91118395]
[1751650503348,5.11193493,146.31,146.29,6.91118395]
[1751650503541,89.8,146.32,146.29,6.91118395]
[1751650503854,89.8,146.32,146.3,6.91118395]
[1751650504050,1e-08,146.33,146.3,6.91118395]
[1751650504245,5.11031948,146.33,146.31,6.83480281]
[1751650504745,5.11031948,146.33,146.32,6.91118395]
[1751650505042,1e-08,146.33,146.32,6.91118395]
[1751650506347,1e-08,146.33,146.32,13.74551965]
[1751650507849,1e-08,146.33,146.32,32.39516851]
[1751650508257,1e-08,146.33,146.32,67.17516851]
[1751650508767,0.2,146.36,146.35,26.0]
[1751650508975,0.2,146.36,146.35,32.91118395]
[1751650509553,0.2,146.36,146.35,39.74411869]
[1751650510156,0.2,146.37,146.35,58.39376755]
[1751650510379,0.2,146.38,146.36,32.47201676]
[1751650510610,0.2,146.38,146.37,13.8223679]
[1751650511249,0.2,146.38,146.37,6.91118395]
[1751650511449,0.1,146.42,146.37,6.91118395]
[1751650511773,0.1,146.42,146.39,6.91118395]
[1751650513862,0.1,146.42,146.39,13.74218417]
[1751650515276,0.1,146.42,146.4,6.91118395]
[1751650516394,0.1,146.42,146.4,13.74148831]
[1751650517061,0.1,146.42,146.41,6.91118395]
[1751650519583,0.1,146.42,146.41,13.7413185]
[1751650519974,0.1,146.42,146.41,6.83013455]
[1751650520163,0.1,146.42,146.4,6.83041532]
[1751650522556,0.1,146.42,146.4,13.74159927]
[1751650523387,0.1,146.42,146.41,6.91118395]
[1751650523560,0.1,146.42,146.41,13.7413185]
[1751650524158,1e-08,146.42,146.41,58.39096736]
[1751650524368,1e-08,146.42,146.41,39.7413185]
[1751650525785,1e-08,146.42,146.41,6.83013455]
[1751650526168,1e-08,146.42,146.39,6.91118395]
[1751650526360,1e-08,146.42,146.4,6.91118395]
[1751650526679,1e-08,146.42,146.41,6.91118395]
[1751650527265,1e-08,146.42,146.4,6.91118395]
[1751650528282,1e-08,146.42,146.39,6.91118395]
[1751650528575,1e-08,146.42,146.41,6.91118395]
[1751650528772,1e-08,146.42,146.41,32.91118395]
[1751650530260,1e-08,146.42,146.41,74.5013185]
[1751650532900,1e-08,146.42,146.41,93.15096736]
[1751650538293,1e-08,146.42,146.41,67.15096736]
[1751650538469,0.2,146.48,146.45,6.82826903]
[1751650538667,0.2,146.48,146.46,34.74]
[1751650540494,0.2,146.48,146.47,6.82733665]
[1751650541581,0.2,146.48,146.46,6.82763983]
[1751650541803,7.11118395,146.48,146.44,6.82873531]
[1751650542295,7.11118395,146.48,146.44,23.9005736]
[1751650542296,0.2,146.48,146.44,23.9005736]
[1751650542674,0.2,146.48,146.46,26.0]
[1751650543095,0.2,146.48,146.47,26.0]
[1751650544691,1.5046,146.52,146.47,49.89567828]
[1751650546505,8.41578395,146.52,146.47,32.82733665]
[1751650546692,6.91118395,146.51,146.47,32.82733665]
[1751650547091,6.91118395,146.5,146.47,6.82733665]
[1751650547698,1.5046,146.52,146.47,6.82733665]
[1751650548013,8.41578395,146.52,146.47,6.82733665]
[1751650548185,6.57663479,146.52,146.47,23.89567828]
[1751650548516,5.07203479,146.53,146.48,26.0]
[1751650548692,6.3395,146.54,146.49,23.89241586]
[1751650548895,5.07575645,146.55,146.49,23.89241586]
[1751650549623,11.9869404,146.56,146.49,23.89241586]
[1751650549811,5.07575645,146.55,146.49,23.89241586]
[1751650550299,5.07575645,146.54,146.49,23.89241586]
[1751650550498,5.07575645,146.55,146.49,23.89241586]
[1751650551211,11.9869404,146.56,146.49,23.89241586]
[1751650551396,11.9869404,146.55,146.49,23.89241586]
[1751650551596,6.91118395,146.55,146.49,23.89241586]
[1751650551799,11.9869404,146.55,146.49,23.89241586]
[1751650552005,6.91118395,146.55,146.49,23.89241586]
[1751650552178,5.07575645,146.54,146.49,23.89241586]
[1751650552385,11.9869404,146.54,146.49,23.89241586]
[1751650552585,6.91118395,146.53,146.49,23.89241586]
[1751650553097,11.89937027,146.55,146.49,23.89241586]
[1751650553296,5.07575645,146.54,146.49,23.89241586]
[1751650553489,11.9869404,146.55,146.49,23.89241586]
[1751650553689,5.07575645,146.54,146.49,23.89241586]
[1751650553899,11.9869404,146.54,146.49,23.89241586]
[1751650554101,6.91118395,146.53,146.49,6.82640453]
[1751650554409,6.91118395,146.52,146.46,26.0]
[1751650554614,6.91118395,146.52,146.47,6.82733665]
[1751650555499,11.38746162,146.53,146.47,6.82733665]
[1751650555699,13.21638395,146.53,146.47,6.82733665]
[1751650556013,18.29864557,146.53,146.47,23.89567828]
[1751650556200,13.21638395,146.53,146.47,23.89567828]
[1751650556712,11.38751662,146.53,146.47,23.89567828]
[1751650556899,13.21638395,146.53,146.47,23.89567828]
[1751650557094,18.29870057,146.53,146.47,23.89567828]
[1751650557296,13.21638395,146.53,146.47,23.89567828]
[1751650557708,5.08268605,146.54,146.47,23.89567828]
[1751650558016,6.91118395,146.53,146.47,23.89567828]
[1751650560428,96.0402,146.56,146.47,23.89567828]
[1751650560590,5.08471953,146.55,146.47,23.89567828]
[1751650560910,6.91118395,146.54,146.47,23.89567828]
[1751650561290,11.99590348,146.54,146.47,23.89567828]
[1751650561588,6.91118395,146.54,146.47,23.89567828]
[1751650562900,5.08471953,146.55,146.47,23.89567828]
[1751650563205,6.91118395,146.53,146.47,23.89567828]
[1751650563512,5.08471953,146.55,146.47,23.89567828]
[1751650563513,6.91118395,146.52,146.47,23.89567828]
[1751650564515,6.91118395,146.51,146.45,23.89894161]
[1751650565017,6.91118395,146.52,146.45,23.89894161]
[1751650568600,11.99984932,146.53,146.45,58.04028677]
[1751650568801,6.91118395,146.53,146.45,58.04028677]
[1751650569000,5.08866537,146.54,146.45,58.04028677]
[1751650569208,11.99984932,146.54,146.46,18.64964886]
[1751650569594,6.91118395,146.53,146.46,18.64964886]
[1751650570719,6.91118395,146.53,146.47,23.89567828]
[1751650573303,12.01082426,146.53,146.47,23.89567828]
[1751650573504,6.91118395,146.53,146.47,23.89567828]
[1751650573705,5.09964031,146.54,146.48,18.64964886]
[1751650573904,6.91118395,146.55,146.48,18.64964886]
[1751650574116,12.01082426,146.55,146.48,18.64964886]
[1751650574316,6.91118395,146.55,146.48,18.64964886]
[1751650574522,5.09964031,146.55,146.49,23.89241586]
[1751650576824,6.91118395,146.56,146.49,23.89241586]
[1751650577027,6.91118395,146.54,146.49,23.89241586]
[1751650577221,12.01465794,146.54,146.49,23.89241586]
[1751650577413,6.91118395,146.54,146.49,23.89241586]
[1751650577721,5.10347399,146.55,146.49,25.54081586]
[1751650578706,12.01465794,146.57,146.51,23.88915431]
[1751650578908,5.10347399,146.56,146.51,23.88915431]
[1751650579120,6.91118395,146.57,146.51,23.88915431]
[1751650579328,5.10347399,146.56,146.51,23.88915431]
[1751650579531,6.91118395,146.57,146.51,23.88915431]
[1751650579825,5.10387385,146.56,146.51,23.88915431]
[1751650580230,6.91118395,146.57,146.51,23.88915431]
[1751650580409,5.10414432,146.56,146.51,23.88915431]
[1751650580720,6.91118395,146.57,146.51,17.06368165]
[1751650580928,5.10414291,146.56,146.51,17.06368165]
[1751650581128,102.99590766,146.6,146.51,17.06368165]
[1751650581322,6.91118395,146.58,146.51,17.06368165]
[1751650581528,5.10433806,146.57,146.51,17.06368165]
[1751650581703,5.10433806,146.56,146.51,17.06368165]
[1751650581904,5.10433806,146.57,146.51,17.06368165]
[1751650582206,5.10487363,146.56,146.51,23.88915431]
[1751650582427,12.01605758,146.57,146.51,23.88915431]
[1751650582614,5.10487363,146.56,146.51,23.88915431]
[1751650583227,6.91118395,146.58,146.51,58.01651762]
[1751650583429,5.10565826,146.57,146.51,58.01651762]
[1751650583623,5.10565826,146.56,146.51,58.01651762]
[1751650583821,6.91118395,146.58,146.51,58.01651762]
[1751650584025,5.10565452,146.57,146.51,58.01651762]
[1751650584324,5.10565452,146.56,146.51,58.01651762]
[1751650584521,5.10565452,146.58,146.52,18.64964886]
[1751650584820,6.91118395,146.6,146.52,18.64964886]
[1751650585026,5.10429791,146.59,146.52,18.64964886]
[1751650585333,5.10429791,146.58,146.52,18.64964886]
[1751650585536,12.01548186,146.59,146.52,18.64964886]
[1751650585734,5.10429791,146.58,146.52,18.64964886]
[1751650585942,5.10267841,146.6,146.55,26.0]
[1751650586127,5.10267841,146.59,146.56,26.0]
[1751650586332,5.10267841,146.6,146.56,26.0]
[1751650586525,5.10267841,146.59,146.57,6.82267858]
[1751650586721,5.10267841,146.6,146.57,6.82267858]
[1751650586932,5.10267841,146.6,146.57,23.87937503]
[1751650587319,7.01118395,146.61,146.57,23.87937503]
[1751650587520,0.1,146.61,146.57,23.87937503]
[1751650588039,7.01118395,146.61,146.57,23.87937503]
[1751650588548,6.91118395,146.58,146.54,6.82407533]
[1751650588752,6.91118395,146.55,146.51,6.82547266]
[1751650588932,6.91118395,146.54,146.51,6.82547266]
[1751650589436,5.09718822,146.57,146.51,6.82547266]
[1751650589638,6.91118395,146.54,146.51,6.82547266]
[1751650589948,6.91118395,146.53,146.51,6.82547266]
[1751650590150,5.09718822,146.55,146.51,6.82547266]
[1751650590328,6.91118395,146.52,146.51,6.82547266]
[1751650590536,6.91118395,146.52,146.48,6.82687056]
[1751650591335,6.91118395,146.5,146.48,6.82687056]
[1751650592141,6.91118395,146.5,146.47,17.06819025]
[1751650592322,6.82410458,146.54,146.46,6.82780281]
[1751650592323,5.10091611,146.53,146.46,6.82780281]
[1751650592646,6.91118395,146.5,146.46,6.82780281]
[1751650593413,6.91118395,146.5,146.45,23.89892738]
[1751650593635,5.10091752,146.53,146.45,23.89892738]
[1751650593828,6.91118395,146.5,146.45,23.89892738]
[1751650594044,6.91118395,146.51,146.45,23.89892738]
[1751650594641,5.10091752,146.54,146.45,23.89892738]
[1751650594943,6.91118395,146.51,146.45,23.89892738]
[1751650596524,6.91118395,146.5,146.45,23.89892738]
[1751650599542,6.91118395,146.48,146.45,23.89892738]
[1751650599741,6.91118395,146.49,146.45,23.89892738]
[1751650602743,6.91118395,146.49,146.45,17.07065835]
[1751650604128,5.09907426,146.52,146.45,17.07065835]
[1751650604329,6.91118395,146.5,146.45,17.07065835]
[1751650604851,89.8,146.53,146.45,17.07065835]
[1751650605154,6.91118395,146.5,146.45,17.07065835]
[1751650607950,6.91118395,146.49,146.45,23.9818423]
[1751650609347,6.91118395,146.49,146.44,6.82873531]
[1751650609348,6.91118395,146.47,146.44,6.82873531]
[1751650609545,6.91118395,146.47,146.44,23.9005736]
[1751650610740,11.92389182,146.5,146.44,6.82873531]
[1751650610947,6.91118395,146.47,146.44,6.82873531]
[1751650613971,6.91118395,146.46,146.44,6.82873531]
[1751650614135,6.91118395,146.45,146.43,6.82902058]
[1751650614340,5.09472501,146.48,146.43,6.82902058]
[1751650614538,6.91118395,146.46,146.43,6.82902058]
[1751650614762,6.91118395,146.45,146.43,6.82902058]
[1751650615063,6.91118395,146.44,146.42,7.02950696]
[1751650615264,6.91118395,146.45,146.42,7.02950696]
[1751650615863,6.91118395,146.46,146.42,24.10367715]
[1751650616451,6.91118395,146.45,146.42,24.10367715]
[1751650616656,6.91118395,146.48,146.44,6.91118395]
[1751650617050,6.91118395,146.48,146.45,6.82826903]
[1751650618873,6.91118395,146.48,146.45,23.89894161]
[1751650619572,6.91118395,146.49,146.45,30.81012556]
[1751650619943,89.8,146.53,146.46,6.91118395]
[1751650620147,89.8,146.53,146.47,6.91118395]
[1751650620342,6.91118395,146.51,146.48,6.82687056]
[1751650620942,89.8,146.53,146.48,13.73805451]
[1751650621144,89.9,146.56,146.51,6.91118395]
[1751650621378,7.01118395,146.56,146.52,6.91118395]
[1751650621557,0.1,146.56,146.52,6.91118395]
[1751650621759,0.1,146.56,146.54,6.91118395]
[1751650622281,0.1,146.56,146.52,6.91118395]
[1751650622282,7.01118395,146.56,146.52,6.91118395]
[1751650622461,7.01118395,146.56,146.53,6.82454104]
[1751650622972,6.91118395,146.56,146.53,6.82454104]
[1751650624682,6.91118395,146.56,146.52,6.91118395]
[1751650627071,89.8,146.59,146.53,6.82454104]
[1751650627465,6.91118395,146.58,146.54,6.91118395]
[1751650628171,6.91118395,146.6,146.55,6.91118395]
[1751650628561,0.1,146.61,146.54,6.91118395]
[1751650628767,6.91118395,146.58,146.54,6.91118395]
[1751650629160,6.91118395,146.58,146.55,6.82360968]
[1751650629863,6.91118395,146.56,146.52,6.82500682]
[1751650630181,6.91118395,146.54,146.52,6.82500682]
[1751650630360,6.91118395,146.53,146.52,6.82500682]
[1751650630777,6.91118395,146.54,146.52,6.82500682]
[1751650631169,6.91118395,146.54,146.51,6.82547266]
[1751650631377,6.91118395,146.58,146.51,6.82547266]
[1751650631580,6.91118395,146.54,146.51,6.82547266]
[1751650633659,6.91118395,146.52,146.51,6.82547266]
[1751650634966,6.91118395,146.52,146.49,17.06589279]
[1751650636583,6.91118395,146.52,146.49,23.89229732]
[1751650636884,6.91118395,146.51,146.49,23.89229732]
[1751650637861,13.52670458,146.56,146.49,23.89229732]
[1751650638056,6.91118395,146.51,146.49,23.89229732]
[1751650638681,89.8,146.55,146.49,17.06589279]
[1751650638888,6.91118395,146.51,146.49,17.06589279]
[1751650640990,6.91118395,146.52,146.49,17.06589279]
[1751650641566,6.41118395,146.52,146.49,17.06589279]
[1751650641871,6.91118395,146.51,146.49,17.06589279]
[1751650642072,6.91118395,146.51,146.48,6.82687056]
[1751650642271,6.91118395,146.49,146.48,6.82687056]
[1751650642685,6.91118395,146.49,146.46,6.82780281]
[1751650642885,89.8,146.52,146.46,6.82780281]
[1751650643198,89.8,146.52,146.46,23.89730984]
[1751650643199,6.91118395,146.49,146.46,23.89730984]
[1751650644305,6.91118395,146.51,146.46,23.98069098]
[1751650644475,96.71118395,146.52,146.47,6.91118395]
[1751650644674,6.91118395,146.52,146.47,6.91118395]
[1751650644874,5.09055769,146.54,146.47,6.91118395]
[1751650645072,6.91118395,146.52,146.47,6.91118395]
[1751650645873,6.91118395,146.52,146.48,6.91118395]
[1751650646099,6.91118395,146.53,146.48,6.91118395]
[1751650646292,6.91118395,146.53,146.49,6.82640453]
[1751650646597,5.09055769,146.54,146.49,6.82640453]
[1751650646598,6.91118395,146.52,146.49,23.89241586]
[1751650647991,5.09055769,146.54,146.49,23.89241586]
[1751650648192,6.91118395,146.52,146.49,23.89241586]
[1751650648492,6.91118395,146.53,146.49,23.89241586]
[1751650649196,96.71118395,146.55,146.51,6.91118395]
[1751650649400,6.91118395,146.55,146.5,6.91118395]
[1751650649601,6.91118395,146.54,146.5,6.91118395]
[1751650649982,6.91118395,146.52,146.49,23.89241586]
[1751650650785,6.91118395,146.53,146.49,23.89241586]
[1751650651098,6.91118395,146.53,146.49,30.80359981]
[1751650651894,6.91118395,146.52,146.49,23.89241586]
[1751650653983,6.91118395,146.52,146.49,6.82640453]
[1751650657382,5.09285891,146.55,146.49,6.82640453]
[1751650657605,6.91118395,146.52,146.49,6.82640453]
[1751650658502,89.8,146.55,146.49,6.82640453]
[1751650658709,6.91118395,146.52,146.49,6.82640453]
[1751650658885,6.91118395,146.5,146.49,6.82640453]
[1751650659088,6.91118395,146.5,146.46,49.98000939]
[1751650659089,6.91118395,146.5,146.47,6.82733665]
[1751650659318,6.91118395,146.49,146.46,23.89662825]
[1751650660096,6.91118395,146.5,146.46,23.89662825]
[1751650660295,6.91118395,146.5,146.46,30.8078122]
[1751650660732,6.91118395,146.51,146.46,30.8078122]
[1751650662616,6.91118395,146.51,146.47,6.91118395]
[1751650662917,6.91118395,146.51,146.46,30.8078122]
[1751650663112,6.91118395,146.5,146.46,30.8078122]
[1751650664005,6.91118395,146.5,146.46,17.06882544]
[1751650664819,6.91118395,146.49,146.46,17.06882544]
[1751650665019,6.91118395,146.49,146.46,23.89662825]
[1751650665910,6.91118395,146.5,146.46,30.8078122]
[1751650668524,96.62429737,146.54,146.46,30.8078122]
[1751650668525,5.09860114,146.53,146.46,23.89662825]
[1751650668701,6.91118395,146.51,146.47,6.91118395]
[1751650668906,89.8,146.54,146.46,30.8078122]
[1751650668907,6.91118395,146.5,146.46,30.8078122]
[1751650670126,5.09860114,146.52,146.46,30.8078122]
[1751650670425,6.91118395,146.5,146.46,23.89662825]
[1751650670728,6.91118395,146.5,146.46,30.8078122]
[1751650671529,6.91118395,146.51,146.47,6.91118395]
[1751650671835,6.91118395,146.52,146.47,6.91118395]
[1751650672422,6.91118395,146.52,146.48,6.82687056]
[1751650672730,6.91118395,146.52,146.48,13.73805451]
[1751650673521,12.01728167,146.52,146.48,13.73805451]
[1751650674025,6.91118395,146.52,146.48,13.73805451]
[1751650674417,12.02000467,146.52,146.48,13.73805451]
[1751650674921,12.02000467,146.52,146.48,30.80523091]
[1751650675328,6.91118395,146.52,146.48,30.80523091]
[1751650675808,6.91118395,146.52,146.48,23.89404696]
[1751650678514,96.71118395,146.53,146.48,30.80523091]
[1751650678838,89.8,146.55,146.49,6.91118395]
[1751650679019,89.8,146.55,146.48,23.89404696]
[1751650679020,12.0244338,146.54,146.48,44.16249582]
[1751650679223,6.91118395,146.54,146.49,6.91118395]
[1751650679433,6.91118395,146.54,146.5,6.82593856]
[1751650679640,5.11298562,146.53,146.5,6.82593856]
[1751650679841,6.91118395,146.54,146.5,6.82593856]
[1751650680023,5.11308949,146.53,146.5,6.82593856]
[1751650680214,6.91118395,146.54,146.5,6.82593856]
[1751650680413,5.1130909,146.53,146.5,13.73712251]
[1751650680614,89.8,146.55,146.5,30.80196892]
[1751650680912,12.02441581,146.54,146.5,30.80196892]
[1751650681121,6.91118395,146.55,146.51,6.91118395]
[1751650681336,5.11323327,146.54,146.52,6.91118395]
[1751650681637,6.91118395,146.56,146.52,6.91118395]
[1751650681834,5.11231867,146.55,146.52,6.91118395]
[1751650682040,97.06,146.58,146.54,6.91118395]
[1751650682041,7.26,146.58,146.54,6.91118395]
[1751650682226,7.26,146.58,146.51,25.56083281]
[1751650682227,0.1,146.58,146.56,6.91118395]
[1751650682912,0.1,146.58,146.57,6.82267858]
[1751650685840,0.1,146.58,146.57,13.73386253]
[1751650686724,0.1,146.61,146.57,13.73386253]
[1751650686725,0.1,146.61,146.58,18.64964886]
[1751650686914,1e-08,146.61,146.6,51.56083281]
[1751650687739,1e-08,146.61,146.6,58.38211521]
[1751650688114,1e-08,146.62,146.6,58.00453126]
[1751650688315,1e-08,146.62,146.61,25.56083281]
[1751650689743,1e-08,146.62,146.61,32.38164994]
[1751650690844,1e-08,146.62,146.61,67.10164994]
[1751650691048,1.4349318,146.69,146.65,18.64964886]
[1751650691351,1.4349318,146.69,146.68,6.91118395]
[1751650692346,1.5939,146.75,146.69,18.64964886]
[1751650692552,6.91118395,146.76,146.72,6.91118395]
[1751650692725,6.1195,146.77,146.73,6.91118395]
[1751650692726,6.91118395,146.77,146.73,6.91118395]
[1751650692925,21.04141777,146.79,146.69,53.38964886]
[1751650693141,6.91118395,146.75,146.71,6.91118395]
[1751650693634,6.91118395,146.72,146.68,6.91118395]
[1751650693823,27.95260172,146.79,146.7,30.76939798]
[1751650694028,6.91118395,146.75,146.71,6.91118395]
[1751650694347,6.91118395,146.76,146.72,6.91118395]
[1751650694553,6.91118395,146.75,146.71,6.91118395]
[1751650694938,6.91118395,146.75,146.72,6.81570338]
[1751650695242,13.88141777,146.79,146.72,13.72688733]
[1751650695558,7.06882783,146.79,146.72,13.72688733]
[1751650695934,6.91118395,146.76,146.72,13.72688733]
[1751650696256,7.06882783,146.79,146.72,6.81570338]
[1751650696435,7.06882783,146.79,146.73,6.91118395]
[1751650696640,6.91118395,146.77,146.74,6.91118395]
[1751650697040,6.91118395,146.77,146.75,6.81431005]
[1751650697425,6.91118395,146.77,146.73,6.91118395]
[1751650697628,6.91118395,146.76,146.72,23.9504424]
[1751650697850,7.06882783,146.79,146.68,18.64964886]
[1751650697851,6.91118395,146.75,146.71,6.91118395]
[1751650698153,6.91118395,146.73,146.7,6.81663258]
[1751650698342,32.91118395,146.76,146.72,6.91118395]
[1751650698541,7.06882783,146.79,146.73,6.91118395]
[1751650698542,6.91118395,146.77,146.73,6.91118395]
[1751650698855,6.91118395,146.78,146.71,18.64964886]
[1751650699070,6.91118395,146.76,146.72,13.72688733]
[1751650700340,6.91118395,146.73,146.7,32.81628352]
[1751650700947,6.81388286,146.76,146.7,32.81628352]
[1751650701153,6.91118395,146.73,146.7,32.81628352]
[1751650701344,6.91118395,146.75,146.71,6.91118395]
[1751650702035,6.91118395,146.75,146.72,6.81570338]
[1751650703647,6.91118395,146.76,146.72,6.91118395]
[1751650704067,6.81294049,146.78,146.71,6.81616795]
[1751650704241,6.91118395,146.74,146.71,6.81616795]
[1751650704445,6.91118395,146.75,146.71,13.7273519]
[1751650705366,6.91118395,146.73,146.71,6.81616795]
[1751650705558,6.91118395,146.74,146.71,6.81616795]
[1751650705938,6.91118395,146.72,146.68,13.72874598]
[1751650706355,25.46349459,146.76,146.68,6.81756203]
[1751650706552,89.8,146.75,146.68,13.72874598]
[1751650706868,6.91118395,146.71,146.68,6.81756203]
[1751650707362,6.91118395,146.7,146.67,6.81789989]
[1751650707567,96.404,146.74,146.66,6.81830391]
[1751650707568,6.91118395,146.69,146.66,6.81830391]
[1751650707734,6.91118395,146.68,146.64,6.81942171]
[1751650707935,6.91118395,146.7,146.66,6.91118395]
[1751650708536,89.8,146.71,146.66,6.91118395]
[1751650708740,6.91118395,146.7,146.66,6.91118395]
[1751650709171,6.91118395,146.7,146.64,23.86797599]
[1751650709376,6.91118395,146.7,146.66,6.91118395]
[1751650709951,6.91118395,146.7,146.67,6.81802686]
[1751650710339,89.8,146.71,146.68,6.91118395]
[1751650710843,6.91118395,146.73,146.69,6.91118395]
[1751650711243,97.08,146.75,146.7,6.91118395]
[1751650711469,6.91118395,146.74,146.7,6.91118395]
[1751650711669,6.91118395,146.73,146.69,6.91118395]
[1751650711845,97.08,146.75,146.69,6.91118395]